[Event "35th European Club Cup 2019"]
[Site "Ulcinj"]
[Date "2019.11.14"]
[Round "5.18"]
[White "Kaatiala, Pekka"]
[Black "Djurovic, Peko"]
[Result "0-1"]
[ECO "A08"]
[WhiteElo "2004"]
[BlackElo "1943"]
[Annotator "NA"]
[PlyCount "102"]
[EventDate "2019.11.10"]
[EventType "team-tourn"]
[EventCountry "MNE"]
[SourceTitle "playchess.com"]
[Source "ChessBase"]
[SourceQuality "1"]
[WhiteTeam "Tammer-Shakki"]
[BlackTeam "Crnogorac"]
[TimeControl "40/5400+30:1800+30"]

1. e4 {[%emt 0:01:43]} c5 {[%emt 0:00:00]} 2. Nf3 {[%emt 0:00:35]} Nc6 {[%emt 0:00:15]} 3. d3 e6 {[%emt 0:01:23]} 4. g3 {[%emt 0:01:09]} d5 {[%emt 0:00:27]} 5. Nbd2 {[%emt 0:00:08]} Nf6 {[%emt 0:00:14]} 6. Bg2 {[%emt 0:00:17]} Be7 {[%emt 0:00:32]} 7. O-O {[%emt 0:00:07]} O-O {[%emt 0:00:08]} 8. Re1 {[%emt 0:00:03]} Re8 {[%emt 0:01:17]} 9. e5 {[%emt 0:00:53]} Nd7 {[%emt 0:00:17]} 10. h4 {[%emt 0:00:45]} Qc7 {[%emt 0:00:44]} 11. Qe2 {[%emt 0:00:25]} Bf8 {[%emt 0:01:41]} 12. Nf1 {[%emt 0:03:02]} b6 {[%emt 0:03:03]} 13. Bf4 {[%emt 0:00:35]} Bb7 {[%emt 0:00:13]} 14. N1h2 {[%emt 0:04:02]} Ne7 {[%emt 0:00:41]} 15. c3 {[%emt 0:05:43]} Ng6 {[%emt 0:05:42]} 16. Bd2 {[%emt 0:00:55]} f6 {[%emt 0:01:48]} 17. d4 {[%emt 0:01:20]} fxe5 {[%emt 0:01:35]} 18. dxe5 a5 {[%emt 0:03:18]} 19. h5 {[%emt 0:08:13]} Ne7 {[%emt 0:00:27]} 20. Bf4 {[%emt 0:01:01]} a4 {[%emt 0:02:56]} 21. Bh3 {[%emt 0:16:38]} Qc6 {[%emt 0:02:28]} 22. Bg2 {[%emt 0:10:38]} Qc7 {[%emt 0:04:09]} 23. Ng5 {[%emt 0:04:40]} Qc6 {[%emt 0:08:43]} 24. Qc2 {[%emt 0:04:54]} g6 {[%emt 0:08:59]} 25. g4 {[%emt 0:17:47]} Bg7 {[%emt 0:13:08]} 26. h6 {[%emt 0:00:21]} Bxh6 27. Nxe6 {[%emt 0:00:13]} Qxe6 {[%emt 0:00:33]} 28. Bxh6 {[%emt 0:02:37]} Bc6 {[%emt 0:02:46]} 29. f4 {[%emt 0:00:30]} d4 {[%emt 0:00:30]} 30. cxd4 {[%emt 0:01:37]} cxd4 {[%emt 0:01:01]} 31. Qd2 {[%emt 0:03:11]} Nc5 {[%emt 0:03:18]} 32. Qxd4 {[%emt 0:04:12]} Rad8 {[%emt 0:00:34]} 33. Qe3 {[%emt 0:01:18]} Bxg2 {[%emt 0:00:14]} 34. Kxg2 {[%emt 0:00:18]} Rd3 {[%emt 0:00:12]} 35. Qf2 {[%emt 0:00:27]} Red8 {[%emt 0:02:04]} 36. Bg5 {[%emt 0:01:28]} Rd2 {[%emt 0:04:32]} 37. Re2 {[%emt 0:00:24]} Ne4 {[%emt 0:00:22]} 38. Rxe4 {[%emt 0:03:34]} Rxf2+ {[%emt 0:00:31]} 39. Kxf2 {[%emt 0:00:08]} Rd2+ {[%emt 0:01:13]} 40. Kg3 {[%emt 0:00:00]} Qc6 {[%emt 0:00:00]} 41. Nf3 {[%emt 0:02:25]} Rd3 {[%emt 0:14:49]} 42. Rae1 {[%emt 0:00:39]} a3 {[%emt 0:04:54]} 43. bxa3 {[%emt 0:04:08]} Qc3 {[%emt 0:01:11]} 44. R4e3 {[%emt 0:10:24]} Rxe3 {[%emt 0:01:22]} 45. Rxe3 {[%emt 0:00:09]} Qxe3 {[%emt 0:00:30]} 46. Bxe7 {[%emt 0:00:30]} Kf7 {[%emt 0:00:00]} 47. Bb4 {[%emt 0:00:01]} h5 {[%emt 0:00:56]} 48. gxh5 {[%emt 0:00:30]} gxh5 {[%emt 0:00:00]} 49. f5 {[%emt 0:09:14]} h4+ {[%emt 0:01:25]} 50. Kxh4 {[%emt 0:00:56]} Qxf3 {[%emt 0:00:06]} 51. Kg5 {[%emt 0:00:30]} Qg3+ {[%emt 0:00:30] e6+ Qf3 f6+ Ke8} 0-1

[Event "35th European Club Cup 2019"]
[Site "Ulcinj"]
[Date "2019.11.14"]
[Round "5.19"]
[White "Pruijssers, Roeland"]
[Black "Podlesnik, Bogdan"]
[Result "1-0"]
[ECO "B30"]
[WhiteElo "2557"]
[BlackElo "2342"]
[Annotator "ChessBase"]
[PlyCount "53"]
[EventDate "2019.11.10"]
[EventType "team-tourn"]
[EventCountry "MNE"]
[SourceTitle "playchess.com"]
[Source "ChessBase"]
[SourceQuality "1"]
[WhiteTeam "Echiquier Mosan"]
[BlackTeam "Prishtina"]
[TimeControl "40/5400+30:1800+30"]

1. e4 {[%emt 0:00:00]} c5 {[%emt 0:00:00]} 2. Nf3 {[%emt 0:00:00]} Nc6 {[%emt 0:00:00]} 3. Bb5 {[%emt 0:00:00]} e5 {[%emt 0:00:00]} 4. O-O {[%emt 0:01:16]} Nge7 {[%emt 0:00:06]} 5. c3 {[%emt 0:02:44]} g6 {[%emt 0:00:14]} 6. d4 {[%emt 0:02:56]} cxd4 {[%emt 0:00:26]} 7. cxd4 {[%emt 0:00:08]} exd4 {[%emt 0:00:06]} 8. Bf4 {[%emt 0:00:59]} Bg7 {[%emt 0:00:11]} 9. Bd6 {[%emt 0:00:14]} a6 {[%emt 0:00:30]} 10. Bd3 {[%emt 0:05:58]} b5 {[%emt 0:13:54]} 11. Nbd2 {[%emt 0:11:18]} Bb7 {[%emt 0:01:20]} 12. e5 {[%emt 0:00:23]} O-O {[%emt 0:12:35]} 13. Ne4 {[%emt 0:06:11]} Re8 {[%emt 0:01:38]} 14. Nc5 {[%emt 0:24:55]} Ra7 {[%emt 0:12:01]} 15. a4 {[%emt 0:09:21]} bxa4 {[%emt 0:02:29]} 16. Ng5 {[%emt 0:00:30]} Nf5 {[%emt 0:08:50]} 17. Bxf5 {[%emt 0:08:26]} Qxg5 {[%emt 0:00:45]} 18. f3 {[%emt 0:06:05]} Qh4 {[%emt 0:06:43]} 19. Bxd7 {[%emt 0:02:22]} Rd8 {[%emt 0:00:39]} 20. Qxa4 {[%emt 0:03:46]} Nb8 {[%emt 0:00:52]} 21. g3 Qh5 {[%emt 0:01:13]} 22. Qa5 {[%emt 0:02:10]} Rxd7 {[%emt 0:03:52]} 23. Bxb8 {[%emt 0:00:11]} Qh3 {[%emt 0:03:50]} 24. Rf2 {[%emt 0:00:07]} Ra8 {[%emt 0:00:15]} 25. e6 {[%emt 0:02:52]} Re7 {[%emt 0:00:45]} 26. Qd8+ {[%emt 0:01:28]} Bf8 {[%emt 0:00:26]} 27. Re1 {[%emt 0:07:49]} 1-0

[Event "35th European Club Cup 2019"]
[Site "Ulcinj"]
[Date "2019.11.14"]
[Round "5.20"]
[White "Van Delft, Merijn"]
[Black "Renet, Olivier"]
[Result "1/2-1/2"]
[ECO "C95"]
[WhiteElo "2353"]
[BlackElo "2475"]
[Annotator "ChessBase"]
[PlyCount "58"]
[EventDate "2019.11.10"]
[EventType "team-tourn"]
[EventCountry "MNE"]
[SourceTitle "playchess.com"]
[Source "ChessBase"]
[SourceQuality "1"]
[WhiteTeam "Apeldoorn"]
[BlackTeam "Riehen SG"]
[TimeControl "40/5400+30:1800+30"]

1. e4 {[%emt 0:00:00]} e5 {[%emt 0:00:00]} 2. Nf3 {[%emt 0:00:00]} Nc6 {[%emt 0:00:02]} 3. Bb5 {[%emt 0:00:00]} a6 {[%emt 0:00:09]} 4. Ba4 {[%emt 0:00:00]} Nf6 {[%emt 0:00:09]} 5. O-O {[%emt 0:00:13]} Be7 {[%emt 0:00:05]} 6. Re1 {[%emt 0:00:14]} b5 {[%emt 0:00:25]} 7. Bb3 {[%emt 0:00:07]} d6 {[%emt 0:00:13]} 8. c3 {[%emt 0:00:10]} O-O {[%emt 0:00:08]} 9. h3 {[%emt 0:00:10]} Nb8 {[%emt 0:00:13]} 10. d4 {[%emt 0:00:18]} Nbd7 {[%emt 0:00:13]} 11. Nbd2 {[%emt 0:00:21]} Bb7 {[%emt 0:00:06]} 12. Bc2 {[%emt 0:00:35]} Re8 {[%emt 0:00:19]} 13. Nf1 {[%emt 0:00:14]} Bf8 {[%emt 0:00:15]} 14. Ng3 {[%emt 0:00:12]} g6 15. Bd2 {[%emt 0:00:57]} Bg7 {[%emt 0:07:15]} 16. Qc1 {[%emt 0:02:23]} d5 {[%emt 0:08:53]} 17. Bg5 {[%emt 0:00:30]} Qc8 {[%emt 0:13:35]} 18. Nxe5 {[%emt 0:09:04]} Nxe5 {[%emt 0:00:56]} 19. dxe5 {[%emt 0:02:16]} Nxe4 {[%emt 0:00:18]} 20. Bxe4 {[%emt 0:12:25]} dxe4 {[%emt 0:00:18]} 21. Nxe4 {[%emt 0:01:57]} Bxe4 {[%emt 0:09:33]} 22. Rxe4 {[%emt 0:00:27]} Qf5 {[%emt 0:00:49]} 23. Qe3 {[%emt 0:08:59]} Rxe5 {[%emt 0:00:35]} 24. Rxe5 {[%emt 0:01:02]} Qxe5 {[%emt 0:00:13]} 25. Qxe5 {[%emt 0:03:53]} Bxe5 {[%emt 0:00:05]} 26. Rd1 {[%emt 0:09:21]} Re8 {[%emt 0:04:37]} 27. Rd7 {[%emt 0:09:19]} Kg7 28. Kf1 {[%emt 0:05:09]} a5 {[%emt 0:08:13]} 29. Bd8 {[%emt 0:10:17]} c6 {[%emt 0:10:51]} 1/2-1/2

[Event "35th European Club Cup 2019"]
[Site "Ulcinj"]
[Date "2019.11.14"]
[Round "5.20"]
[White "Sadiku, Bedri"]
[Black "Burg, Twan"]
[Result "1/2-1/2"]
[ECO "B20"]
[WhiteElo "2220"]
[BlackElo "2536"]
[Annotator "ChessBase"]
[PlyCount "60"]
[EventDate "2019.11.10"]
[EventType "team-tourn"]
[EventCountry "MNE"]
[SourceTitle "playchess.com"]
[Source "ChessBase"]
[SourceQuality "1"]
[WhiteTeam "Prishtina"]
[BlackTeam "Echiquier Mosan"]
[TimeControl "40/5400+30:1800+30"]

1. e4 {[%emt 0:00:00]} c5 {[%emt 0:00:00]} 2. d3 {[%emt 0:00:19]} Nc6 {[%emt 0:01:25]} 3. g3 {[%emt 0:03:17]} e6 {[%emt 0:00:30]} 4. Bg2 {[%emt 0:00:21]} Nf6 {[%emt 0:00:53]} 5. Ne2 {[%emt 0:03:21]} d5 {[%emt 0:00:39]} 6. Nd2 {[%emt 0:00:59]} Be7 {[%emt 0:00:50]} 7. O-O {[%emt 0:00:28]} O-O {[%emt 0:00:25]} 8. h3 {[%emt 0:00:20]} b5 {[%emt 0:01:55]} 9. a4 {[%emt 0:01:54]} b4 {[%emt 0:00:32]} 10. b3 {[%emt 0:00:11]} Qb6 {[%emt 0:05:45]} 11. Bb2 {[%emt 0:10:50]} dxe4 {[%emt 0:05:04]} 12. Nxe4 {[%emt 0:00:24]} Nxe4 {[%emt 0:00:58]} 13. Bxe4 {[%emt 0:00:24]} e5 {[%emt 0:02:02]} 14. Bg2 {[%emt 0:01:12]} Bb7 {[%emt 0:16:12]} 15. Kh2 {[%emt 0:02:37]} Rad8 {[%emt 0:00:35]} 16. f4 {[%emt 0:04:26]} Bd6 {[%emt 0:01:54]} 17. Qe1 {[%emt 0:03:18]} f6 {[%emt 0:08:35]} 18. Qf2 {[%emt 0:02:10]} Nd4 {[%emt 0:02:10]} 19. Nxd4 {[%emt 0:05:02]} cxd4 {[%emt 0:00:07]} 20. Bxb7 {[%emt 0:03:14]} Qxb7 {[%emt 0:00:08]} 21. fxe5 Bxe5 {[%emt 0:00:15]} 22. Qg2 {[%emt 0:00:22]} Qc7 {[%emt 0:00:35]} 23. Rae1 {[%emt 0:02:24]} Rfe8 {[%emt 0:00:19]} 24. Re4 {[%emt 0:00:12]} Re6 {[%emt 0:05:45]} 25. Rf2 {[%emt 0:05:27]} Rc6 {[%emt 0:02:35]} 26. Ree2 {[%emt 0:02:37]} Rc5 {[%emt 0:09:06]} 27. Bc1 {[%emt 0:03:33]} a5 {[%emt 0:02:26]} 28. Bf4 {[%emt 0:00:30]} Rc8 {[%emt 0:02:08]} 29. Bxe5 {[%emt 0:00:26]} fxe5 {[%emt 0:00:53]} 30. Qf3 {[%emt 0:00:51]} h6 1/2-1/2

[Event "35th European Club Cup 2019"]
[Site "Ulcinj"]
[Date "2019.11.14"]
[Round "5.21"]
[White "Beerdsen, Thomas"]
[Black "Ademi, Sami"]
[Result "1-0"]
[ECO "B20"]
[WhiteElo "2468"]
[BlackElo "2162"]
[Annotator "ChessBase"]
[PlyCount "47"]
[EventDate "2019.11.10"]
[EventType "team-tourn"]
[EventCountry "MNE"]
[SourceTitle "playchess.com"]
[Source "ChessBase"]
[SourceQuality "1"]
[WhiteTeam "Echiquier Mosan"]
[BlackTeam "Prishtina"]
[TimeControl "40/5400+30:1800+30"]

1. e4 {[%emt 0:00:00]} c5 {[%emt 0:01:18]} 2. b4 {[%emt 0:00:00]} cxb4 {[%emt 0:00:46]} 3. a3 {[%emt 0:00:00]} bxa3 {[%emt 0:00:51]} 4. Nxa3 {[%emt 0:00:00]} d6 {[%emt 0:04:28]} 5. d4 {[%emt 0:00:44]} a6 {[%emt 0:00:30]} 6. f4 {[%emt 0:05:48]} g6 {[%emt 0:01:57]} 7. Nf3 {[%emt 0:00:31]} Bg7 {[%emt 0:00:14]} 8. Bd3 {[%emt 0:01:14]} Nc6 {[%emt 0:01:30]} 9. c3 {[%emt 0:00:20]} Nf6 {[%emt 0:01:42]} 10. O-O {[%emt 0:02:21]} O-O {[%emt 0:00:32]} 11. Qe1 {[%emt 0:01:38]} Qc7 {[%emt 0:06:11]} 12. e5 dxe5 {[%emt 0:00:43]} 13. fxe5 {[%emt 0:12:36]} Nd5 {[%emt 0:04:32]} 14. Ng5 {[%emt 0:04:41]} Nd8 {[%emt 0:20:54]} 15. Qh4 {[%emt 0:12:12]} h6 {[%emt 0:00:27]} 16. Ne4 {[%emt 0:01:08]} Kh7 {[%emt 0:00:18]} 17. c4 {[%emt 0:03:12]} Nb4 {[%emt 0:00:13]} 18. Bb1 {[%emt 0:01:21]} b5 {[%emt 0:05:21]} 19. Nf6+ {[%emt 0:03:48]} exf6 {[%emt 0:03:34]} 20. exf6 {[%emt 0:00:06]} Rh8 {[%emt 0:00:56]} 21. fxg7 {[%emt 0:00:36]} Kxg7 {[%emt 0:00:02]} 22. Bf4 {[%emt 0:01:26]} Qd7 {[%emt 0:02:41]} 23. Be5+ {[%emt 0:00:06]} Kg8 {[%emt 0:00:08]} 24. Qf6 {[%emt 0:00:28]} 1-0

[Event "35th European Club Cup 2019"]
[Site "Ulcinj"]
[Date "2019.11.14"]
[Round "5.22"]
[White "Bujupi, Fatmir"]
[Black "Umudova, Nargiz"]
[Result "0-1"]
[ECO "B12"]
[WhiteElo "2131"]
[BlackElo "2270"]
[Annotator "NA"]
[PlyCount "70"]
[EventDate "2019.11.10"]
[EventType "team-tourn"]
[EventCountry "MNE"]
[SourceTitle "playchess.com"]
[Source "ChessBase"]
[SourceQuality "1"]
[WhiteTeam "Prishtina"]
[BlackTeam "Echiquier Mosan"]
[TimeControl "40/5400+30:1800+30"]

1. e4 {[%emt 0:00:00]} c6 {[%emt 0:00:00]} 2. d4 {[%emt 0:00:02]} d5 {[%emt 0:00:00]} 3. Bd3 {[%emt 0:01:46]} dxe4 {[%emt 0:02:29]} 4. Bxe4 {[%emt 0:00:07]} Nf6 {[%emt 0:00:41]} 5. Bf3 {[%emt 0:00:08]} Bf5 {[%emt 0:01:54]} 6. Ne2 {[%emt 0:03:35]} e6 {[%emt 0:00:38]} 7. O-O {[%emt 0:00:38]} Be7 {[%emt 0:05:09]} 8. c4 {[%emt 0:01:39]} Nbd7 {[%emt 0:07:18]} 9. Bf4 {[%emt 0:03:51]} h6 {[%emt 0:01:21]} 10. Ng3 {[%emt 0:04:53]} Bh7 {[%emt 0:01:08]} 11. Re1 {[%emt 0:02:30]} Nb6 {[%emt 0:04:43]} 12. b3 {[%emt 0:01:46]} Qd7 {[%emt 0:03:46]} 13. Qd2 {[%emt 0:07:37]} O-O {[%emt 0:06:55]} 14. Nc3 {[%emt 0:03:34]} a5 {[%emt 0:08:29]} 15. Rad1 {[%emt 0:11:10]} a4 {[%emt 0:13:19]} 16. Re5 Bb4 {[%emt 0:11:01]} 17. Qe3 {[%emt 0:20:10]} axb3 {[%emt 0:04:16]} 18. axb3 Bg6 {[%emt 0:02:31]} 19. h4 {[%emt 0:06:49]} Ra3 {[%emt 0:02:42]} 20. Bxh6 {[%emt 0:06:43]} Rxb3 {[%emt 0:05:45]} 21. Qg5 {[%emt 0:01:27]} Rxc3 {[%emt 0:03:26]} 22. h5 {[%emt 0:01:44]} Nh7 {[%emt 0:04:50]} 23. Qg4 {[%emt 0:01:19]} f5 {[%emt 0:02:17]} 24. Qh3 {[%emt 0:05:09]} Be8 {[%emt 0:00:27]} 25. Bd2 {[%emt 0:08:14]} Rxc4 {[%emt 0:00:37]} 26. Bxb4 {[%emt 0:00:26]} Rxb4 {[%emt 0:00:05]} 27. Qh4 {[%emt 0:01:00]} Nd5 {[%emt 0:01:50]} 28. Rde1 {[%emt 0:00:26]} Bf7 {[%emt 0:00:52]} 29. Bxd5 {[%emt 0:03:41]} cxd5 {[%emt 0:00:10]} 30. Ne2 {[%emt 0:02:29]} Qd8 {[%emt 0:00:32]} 31. Qh2 {[%emt 0:00:17]} Qg5 {[%emt 0:01:01]} 32. Nf4 {[%emt 0:01:38]} Rxd4 {[%emt 0:00:48]} 33. Nxe6 {[%emt 0:00:10]} Bxe6 {[%emt 0:00:12]} 34. Rxe6 {[%emt 0:00:05]} Re4 {[%emt 0:01:19]} 35. R1xe4 fxe4 0-1

[Event "35th European Club Cup 2019"]
[Site "Ulcinj"]
[Date "2019.11.14"]
[Round "5.23"]
[White "Haag, Gregor"]
[Black "Boel, Marcel"]
[Result "1/2-1/2"]
[ECO "D38"]
[WhiteElo "2368"]
[BlackElo "2218"]
[Annotator "NA"]
[PlyCount "60"]
[EventDate "2019.11.10"]
[EventType "team-tourn"]
[EventCountry "MNE"]
[SourceTitle "playchess.com"]
[Source "ChessBase"]
[SourceQuality "1"]
[WhiteTeam "Riehen SG"]
[BlackTeam "Apeldoorn"]
[TimeControl "40/5400+30:1800+30"]

1. d4 {[%emt 0:00:00]} d5 {[%emt 0:00:00]} 2. c4 e6 {[%emt 0:00:00]} 3. Nf3 {[%emt 0:00:00]} Nf6 {[%emt 0:00:00]} 4. Nc3 {[%emt 0:00:00]} Bb4 {[%emt 0:00:31]} 5. Bg5 h6 {[%emt 0:01:51]} 6. Bxf6 {[%emt 0:04:29]} Qxf6 7. Qa4+ {[%emt 0:07:24]} Nc6 {[%emt 0:00:46]} 8. e3 {[%emt 0:00:53]} O-O {[%emt 0:01:46]} 9. Bd3 {[%emt 0:07:07]} dxc4 {[%emt 0:05:27]} 10. Bxc4 {[%emt 0:00:28]} Bxc3+ {[%emt 0:09:13]} 11. bxc3 {[%emt 0:02:01]} Bd7 {[%emt 0:02:37]} 12. O-O {[%emt 0:08:42]} Rfd8 {[%emt 0:01:14]} 13. Qc2 {[%emt 0:06:38]} Na5 {[%emt 0:02:23]} 14. Bd3 {[%emt 0:02:46]} c5 {[%emt 0:03:09]} 15. Rab1 {[%emt 0:02:43]} Rac8 {[%emt 0:01:25]} 16. Qe2 {[%emt 0:02:03]} Qe7 {[%emt 0:04:35]} 17. Ne5 {[%emt 0:04:26]} Be8 {[%emt 0:03:38]} 18. h3 {[%emt 0:12:41]} g6 {[%emt 0:12:12]} 19. Qb2 {[%emt 0:06:10]} b6 {[%emt 0:01:02]} 20. Rfc1 {[%emt 0:04:58]} Nc6 {[%emt 0:02:22]} 21. Nxc6 {[%emt 0:07:48]} Bxc6 {[%emt 0:05:54]} 22. Qa3 {[%emt 0:02:06]} Qg5 {[%emt 0:03:39]} 23. Bf1 {[%emt 0:05:02]} Be4 {[%emt 0:01:34]} 24. Rb5 {[%emt 0:00:05]} Bc6 25. Rbb1 {[%emt 0:00:05]} Be4 {[%emt 0:01:00]} 26. Rb5 {[%emt 0:07:05]} Bc6 {[%emt 0:00:42]} 27. Rbb1 {[%emt 0:00:05]} Be4 {[%emt 0:00:04]} 28. Rb5 {[%emt 0:00:04]} Bc6 29. Rbb1 {[%emt 0:00:02]} Be4 {[%emt 0:00:36]} 30. Rb5 Bc6 1/2-1/2

[Event "35th European Club Cup 2019"]
[Site "Ulcinj"]
[Date "2019.11.14"]
[Round "5.23"]
[White "Noiroux, Kevin"]
[Black "Berisha, Enver"]
[Result "0-1"]
[ECO "A46"]
[WhiteElo "2170"]
[BlackElo "2124"]
[Annotator "NA"]
[PlyCount "180"]
[EventDate "2019.11.10"]
[EventType "team-tourn"]
[EventCountry "MNE"]
[SourceTitle "playchess.com"]
[Source "ChessBase"]
[SourceQuality "1"]
[WhiteTeam "Echiquier Mosan"]
[BlackTeam "Prishtina"]
[TimeControl "40/5400+30:1800+30"]

1. d4 {[%emt 0:00:00]} Nf6 {[%emt 0:00:00]} 2. Nf3 {[%emt 0:00:00]} e6 {[%emt 0:00:10]} 3. Bf4 {[%emt 0:00:00]} d5 {[%emt 0:00:21]} 4. e3 {[%emt 0:00:00]} Bd6 {[%emt 0:01:05]} 5. Bg3 {[%emt 0:00:01]} O-O {[%emt 0:00:26]} 6. Nbd2 {[%emt 0:00:15]} b6 {[%emt 0:00:22]} 7. Bd3 {[%emt 0:00:12]} Bb7 {[%emt 0:00:43]} 8. c3 {[%emt 0:00:41]} Ne4 {[%emt 0:01:43]} 9. Bh4 {[%emt 0:18:49]} Be7 {[%emt 0:04:07]} 10. Bxe7 {[%emt 0:00:29]} Qxe7 {[%emt 0:00:14]} 11. g4 {[%emt 0:01:45]} Nd7 {[%emt 0:02:08]} 12. Qc2 {[%emt 0:04:16]} f5 {[%emt 0:04:17]} 13. Rg1 {[%emt 0:05:18]} fxg4 {[%emt 0:01:16]} 14. Rxg4 {[%emt 0:02:39]} Ndf6 {[%emt 0:00:52]} 15. Rg2 {[%emt 0:01:25]} Nxd2 {[%emt 0:01:21]} 16. Nxd2 {[%emt 0:13:16]} e5 {[%emt 0:02:42]} 17. dxe5 Qxe5 {[%emt 0:00:58]} 18. O-O-O {[%emt 0:00:52]} c5 {[%emt 0:03:39]} 19. Rdg1 {[%emt 0:02:02]} Rf7 {[%emt 0:04:14]} 20. Nf3 {[%emt 0:03:30]} Qh5 {[%emt 0:00:47]} 21. Ng5 {[%emt 0:09:14]} Re7 {[%emt 0:00:44]} 22. Rg3 {[%emt 0:00:20]} Bc8 {[%emt 0:05:07]} 23. Bf5 {[%emt 0:06:53]} Bxf5 {[%emt 0:02:29]} 24. Qxf5 {[%emt 0:00:04]} Rf8 {[%emt 0:05:33]} 25. Rh3 {[%emt 0:11:42]} Qg6 {[%emt 0:00:12]} 26. Qxg6 {[%emt 0:00:19]} hxg6 {[%emt 0:00:13]} 27. Rhg3 {[%emt 0:00:55]} Nh5 {[%emt 0:00:22]} 28. R3g2 {[%emt 0:00:09]} d4 {[%emt 0:00:49]} 29. Rd1 {[%emt 0:03:26]} dxe3 {[%emt 0:01:12]} 30. fxe3 {[%emt 0:00:10]} Rxe3 {[%emt 0:00:36]} 31. Kb1 {[%emt 0:04:26]} c4 {[%emt 0:02:52]} 32. a3 {[%emt 0:00:18]} Rd3 {[%emt 0:00:33]} 33. Re1 {[%emt 0:00:43]} Nf4 {[%emt 0:05:47]} 34. Rf2 {[%emt 0:06:35]} Rd5 {[%emt 0:00:58]} 35. Ref1 {[%emt 0:02:31]} Rdf5 {[%emt 0:00:55]} 36. Ne4 {[%emt 0:00:19]} Nd3 {[%emt 0:00:24]} 37. Rxf5 {[%emt 0:00:19]} gxf5 {[%emt 0:03:01]} 38. Nd6 {[%emt 0:00:10]} f4 {[%emt 0:00:31]} 39. Nxc4 {[%emt 0:00:21]} Kh7 {[%emt 0:03:30]} 40. Kc2 {[%emt 0:00:00]} Nc5 {[%emt 0:00:00]} 41. b4 {[%emt 0:03:35]} Ne6 {[%emt 0:05:04]} 42. h4 {[%emt 0:07:30]} Kh6 {[%emt 0:01:23]} 43. Ne5 {[%emt 0:01:40]} Rf5 {[%emt 0:01:16]} 44. Nf3 {[%emt 0:00:08]} Kh5 {[%emt 0:06:05]} 45. Kd3 {[%emt 0:01:44]} Rf8 {[%emt 0:05:57]} 46. Ke4 {[%emt 0:05:22]} Rc8 {[%emt 0:04:34]} 47. c4 {[%emt 0:00:22]} Nf8 {[%emt 0:03:21]} 48. Ne5 {[%emt 0:02:06]} Ng6 {[%emt 0:06:25]} 49. Nxg6 {[%emt 0:05:28]} Kxg6 {[%emt 0:00:27]} 50. Rg1+ {[%emt 0:03:22]} Kh6 {[%emt 0:01:33]} 51. Kd5 {[%emt 0:01:39]} Rd8+ {[%emt 0:01:35]} 52. Kc6 {[%emt 0:01:27]} Rd3 {[%emt 0:02:16]} 53. a4 {[%emt 0:03:11]} Rd4 {[%emt 0:01:31]} 54. Kb5 {[%emt 0:00:31]} a6+ {[%emt 0:04:36]} 55. Kxa6 {[%emt 0:00:15]} Rxc4 {[%emt 0:00:07]} 56. Kb5 {[%emt 0:00:10]} Re4 {[%emt 0:00:20]} 57. a5 {[%emt 0:04:53]} bxa5 {[%emt 0:00:16]} 58. bxa5 {[%emt 0:00:11]} f3 {[%emt 0:00:32]} 59. Rf1 {[%emt 0:00:16]} Re3 {[%emt 0:00:09]} 60. a6 {[%emt 0:00:37]} Ra3 61. a7 {[%emt 0:00:36]} Rxa7 {[%emt 0:02:56]} 62. Rxf3 {[%emt 0:00:03]} Kh5 {[%emt 0:00:19]} 63. Rf4 {[%emt 0:00:48]} Rc7 {[%emt 0:00:30]} 64. Kb4 {[%emt 0:00:19]} Rc1 {[%emt 0:00:25]} 65. Kb3 {[%emt 0:00:24]} Rg1 {[%emt 0:00:29]} 66. Kc2 {[%emt 0:00:31]} Rg4 67. Rf8 {[%emt 0:00:11]} Kxh4 {[%emt 0:00:28]} 68. Kd2 {[%emt 0:00:07]} Re4 {[%emt 0:00:36]} 69. Kd3 {[%emt 0:00:41]} Re1 {[%emt 0:00:30]} 70. Rf4+ {[%emt 0:00:28]} Kg3 {[%emt 0:00:46]} 71. Rf5 {[%emt 0:00:13]} Kg4 {[%emt 0:00:14]} 72. Rf7 {[%emt 0:00:02]} g5 {[%emt 0:00:16]} 73. Kd2 {[%emt 0:00:03]} Re5 {[%emt 0:00:19]} 74. Kd3 {[%emt 0:00:27]} Kg3 {[%emt 0:00:17]} 75. Kd4 {[%emt 0:00:02]} Re1 {[%emt 0:00:20]} 76. Rg7 {[%emt 0:00:04]} g4 {[%emt 0:00:28]} 77. Kd3 {[%emt 0:00:05]} Kf3 {[%emt 0:00:40]} 78. Kd2 {[%emt 0:00:04]} Re6 {[%emt 0:00:24]} 79. Rf7+ {[%emt 0:00:16]} Kg2 {[%emt 0:00:19]} 80. Rg7 {[%emt 0:00:02]} g3 {[%emt 0:00:15]} 81. Kd1 {[%emt 0:00:08]} Kf2 {[%emt 0:00:13]} 82. Rf7+ {[%emt 0:00:19]} Kg1 {[%emt 0:00:26]} 83. Rg7 {[%emt 0:00:54]} g2 {[%emt 0:00:15]} 84. Kd2 {[%emt 0:00:09]} Re4 {[%emt 0:00:10]} 85. Kd3 {[%emt 0:00:06]} Rh4 {[%emt 0:00:23]} 86. Ke2 {[%emt 0:02:12]} Rh8 {[%emt 0:00:34]} 87. Rg5 {[%emt 0:04:29]} Kh2 {[%emt 0:00:33]} 88. Kf2 {[%emt 0:00:51]} g1=Q+ {[%emt 0:00:21]} 89. Rxg1 {[%emt 0:00:07]} Rf8+ {[%emt 0:00:12]} 90. Ke3 {[%emt 0:00:03]} Kxg1 {[%emt 0:00:22]} 0-1

[Event "35th European Club Cup 2019"]
[Site "Ulcinj"]
[Date "2019.11.14"]
[Round "5.24"]
[White "Van der Elburg, Freddie"]
[Black "Wirthensohn, Heinz"]
[Result "0-1"]
[ECO "A03"]
[WhiteElo "2190"]
[BlackElo "2313"]
[Annotator "NA"]
[PlyCount "72"]
[EventDate "2019.11.10"]
[EventType "team-tourn"]
[EventCountry "MNE"]
[SourceTitle "playchess.com"]
[Source "ChessBase"]
[SourceQuality "1"]
[WhiteTeam "Apeldoorn"]
[BlackTeam "Riehen SG"]
[TimeControl "40/5400+30:1800+30"]

1. f4 {[%emt 0:00:00]} d5 {[%emt 0:00:00]} 2. Nf3 {[%emt 0:00:00]} g6 3. g3 {[%emt 0:00:00]} Nf6 {[%emt 0:00:12]} 4. Bg2 {[%emt 0:00:00]} Bg7 {[%emt 0:00:22]} 5. O-O {[%emt 0:00:18]} b5 {[%emt 0:01:37]} 6. d3 {[%emt 0:00:30]} Bb7 {[%emt 0:00:30]} 7. Qe1 {[%emt 0:11:18]} Nbd7 {[%emt 0:03:44]} 8. a4 a6 9. axb5 {[%emt 0:13:45]} axb5 {[%emt 0:08:18]} 10. Rxa8 {[%emt 0:00:04]} Qxa8 {[%emt 0:00:24]} 11. Na3 {[%emt 0:05:04]} Qa6 {[%emt 0:01:09]} 12. Qb4 {[%emt 0:10:52]} Qb6+ 13. d4 Ba6 {[%emt 0:02:42]} 14. Ne5 {[%emt 0:17:17]} e6 {[%emt 0:02:37]} 15. Be3 {[%emt 0:07:45]} Bf8 16. Qd2 b4 {[%emt 0:00:50]} 17. Nb1 {[%emt 0:00:35]} Be7 {[%emt 0:00:49]} 18. Rc1 {[%emt 0:03:02]} O-O {[%emt 0:01:25]} 19. c4 {[%emt 0:01:35]} bxc3 {[%emt 0:00:20]} 20. Nxc3 {[%emt 0:08:00]} Rc8 {[%emt 0:14:32]} 21. Nd3 {[%emt 0:11:50]} Ng4 {[%emt 0:05:19]} 22. Na4 {[%emt 0:02:25]} Qb3 {[%emt 0:03:43]} 23. Nac5 {[%emt 0:02:58]} Nxc5 {[%emt 0:01:48]} 24. Rc3 {[%emt 0:01:12]} Qb5 {[%emt 0:07:23]} 25. dxc5 Bf6 {[%emt 0:01:43]} 26. Ra3 {[%emt 0:01:34]} Nxe3 {[%emt 0:01:35]} 27. Qxe3 {[%emt 0:00:12]} Qc4 {[%emt 0:03:52]} 28. Qd2 {[%emt 0:00:13]} Bb5 {[%emt 0:01:01]} 29. b4 {[%emt 0:01:04]} Bc6 {[%emt 0:02:06]} 30. Bf1 {[%emt 0:01:30]} Qe4 {[%emt 0:02:01]} 31. Nf2 {[%emt 0:00:11]} Qb1 {[%emt 0:01:07]} 32. Qd3 {[%emt 0:00:49]} Qxb4 {[%emt 0:00:31]} 33. Qa6 {[%emt 0:01:28]} Ra8 {[%emt 0:01:56]} 34. Qxa8+ {[%emt 0:00:33]} Bxa8 {[%emt 0:00:10]} 35. Rxa8+ {[%emt 0:00:02]} Kg7 {[%emt 0:00:08]} 36. Nd3 {[%emt 0:00:03]} Qe4 {[%emt 0:05:13]} 0-1